[Event "Titled Tuesday Blitz November 14 Late 2023"]
[White "aghasiyevkamal"]
[Black "Marcziter, Dmitrii"]
[BlackFideId "13900765"]
[WhiteElo "2572"]
[BlackElo "2432"]
[Result "1/2-1/2"]
[Round "8"]
[TimeControl "180+1"]
[Date "2023.11.14"]
[WhiteClock "0:00:08"]
[BlackClock "0:00:17"]
[Board "68"]

1. e4 {[%clk 0:02:59]}  c5 {[%clk 0:02:59]} 2. Nf3 {[%clk 0:02:56]}  a6 {[%clk 0:02:59]} 3. c3 {[%clk 0:02:56]}  d5 {[%clk 0:02:59]} 4. exd5 {[%clk 0:02:52]}  Qxd5 {[%clk 0:02:58]} 5. d4 {[%clk 0:02:52]}  Nf6 {[%clk 0:02:57]} 6. c4 {[%clk 0:02:47]}  Qe4+ {[%clk 0:02:57]} 7. Be2 {[%clk 0:02:47]}  cxd4 {[%clk 0:02:56]} 8. Qxd4 {[%clk 0:02:46]}  Nc6 {[%clk 0:02:54]} 9. Qxe4 {[%clk 0:02:45]}  Nxe4 {[%clk 0:02:54]} 10. O-O {[%clk 0:02:45]}  Bg4 {[%clk 0:02:49]} 11. Nbd2 {[%clk 0:02:41]}  Nf6 {[%clk 0:02:45]} 12. h3 {[%clk 0:02:36]}  Bh5 {[%clk 0:02:44]} 13. b3 {[%clk 0:02:35]}  e6 {[%clk 0:02:43]} 14. Bb2 {[%clk 0:02:35]}  Be7 {[%clk 0:02:42]} 15. Rfd1 {[%clk 0:02:25]}  O-O {[%clk 0:02:41]} 16. Nf1 {[%clk 0:02:25]}  Rfd8 {[%clk 0:02:39]} 17. Ng3 {[%clk 0:02:13]}  Bg6 {[%clk 0:02:39]} 18. Ne5 {[%clk 0:02:13]}  Nxe5 {[%clk 0:02:38]} 19. Bxe5 {[%clk 0:02:13]}  Bc2 {[%clk 0:02:27]} 20. Rxd8+ {[%clk 0:02:08]}  Rxd8 {[%clk 0:02:27]} 21. Rc1 {[%clk 0:02:09]}  Bg6 {[%clk 0:02:22]} 22. Bf3 {[%clk 0:02:04]}  Rd7 {[%clk 0:02:19]} 23. c5 {[%clk 0:01:24]}  Nd5 {[%clk 0:02:14]} 24. c6 {[%clk 0:01:23]}  bxc6 {[%clk 0:02:13]} 25. Rxc6 {[%clk 0:01:22]}  a5 {[%clk 0:02:08]} 26. Rc8+ {[%clk 0:01:15]}  Rd8 {[%clk 0:02:04]} 27. Rxd8+ {[%clk 0:01:15]}  Bxd8 {[%clk 0:02:04]} 28. Bxd5 {[%clk 0:01:14]}  exd5 {[%clk 0:02:04]} 29. Ne2 {[%clk 0:01:12]}  f6 {[%clk 0:02:02]} 30. Bc3 {[%clk 0:01:11]}  Bb1 {[%clk 0:01:57]} 31. a3 {[%clk 0:01:08]}  Bb6 {[%clk 0:01:55]} 32. Bd4 {[%clk 0:01:04]}  Bc7 {[%clk 0:01:51]} 33. Nc3 {[%clk 0:01:03]}  Bc2 {[%clk 0:01:37]} 34. b4 {[%clk 0:00:48]}  axb4 {[%clk 0:01:35]} 35. axb4 {[%clk 0:00:48]}  Bb3 {[%clk 0:01:33]} 36. b5 {[%clk 0:00:43]}  Kf7 {[%clk 0:01:28]} 37. g4 {[%clk 0:00:38]}  Ke6 {[%clk 0:01:25]} 38. Kg2 {[%clk 0:00:37]}  Bc4 {[%clk 0:01:18]} 39. Kf3 {[%clk 0:00:36]}  Ba5 {[%clk 0:01:09]} 40. Nd1 {[%clk 0:00:27]}  Bxb5 {[%clk 0:01:07]} 41. Ne3 {[%clk 0:00:27]}  Bd3 {[%clk 0:01:05]} 42. Kg3 {[%clk 0:00:25]}  Bc7+ {[%clk 0:01:04]} 43. f4 {[%clk 0:00:25]}  g5 {[%clk 0:01:01]} 44. Ng2 {[%clk 0:00:22]}  Be4 {[%clk 0:01:01]} 45. Be3 {[%clk 0:00:19]}  Bxg2 {[%clk 0:00:59]} 46. Kxg2 {[%clk 0:00:19]}  gxf4 {[%clk 0:00:59]} 47. Bc5 {[%clk 0:00:19]}  Ke5 {[%clk 0:00:55]} 48. Kf3 {[%clk 0:00:17]}  d4 {[%clk 0:00:52]} 49. h4 {[%clk 0:00:17]}  d3 {[%clk 0:00:51]} 50. Bb4 {[%clk 0:00:17]}  Bb6 {[%clk 0:00:48]} 51. Bd2 {[%clk 0:00:16]}  Kd4 {[%clk 0:00:37]} 52. g5 {[%clk 0:00:12]}  fxg5 {[%clk 0:00:35]} 53. hxg5 {[%clk 0:00:12]}  Bc7 {[%clk 0:00:34]} 54. Be1 {[%clk 0:00:10]}  Be5 {[%clk 0:00:29]} 55. Bd2 {[%clk 0:00:09]}  Kc4 {[%clk 0:00:27]} 56. Ke4 {[%clk 0:00:09]}  Bc3 {[%clk 0:00:26]} 57. Bxf4 {[%clk 0:00:08]}  d2 {[%clk 0:00:26]} 58. Bxd2 {[%clk 0:00:09]}  Bxd2 {[%clk 0:00:26]} 59. Kf5 {[%clk 0:00:09]}  Bc3 {[%clk 0:00:24]} 60. Ke6 {[%clk 0:00:08]}  Kd3 {[%clk 0:00:17]} 61. Kf7 {[%clk 0:00:08]}  Ke4 {[%clk 0:00:17]} 62. Kg8 {[%clk 0:00:08]}  Kf5 {[%clk 0:00:16]} 63. Kxh7 {[%clk 0:00:08]}  Kxg5 {[%clk 0:00:17]} 1/2-1/2


[Site "https://www.chess.com"]

[Event "Titled Tuesday Blitz November 14 Late 2023"]
[White "Karamsetty, Jeevan"]
[Black "hristos03"]
[WhiteFideId "2025337"]
[WhiteElo "2543"]
[BlackElo "2391"]
[Result "1-0"]
[Round "8"]
[TimeControl "180+1"]
[Date "2023.11.14"]
[WhiteClock "0:02:07"]
[BlackClock "0:00:06"]
[Board "70"]

1. e4 {[%clk 0:03:00]}  c5 {[%clk 0:02:59]} 2. Nf3 {[%clk 0:03:00]}  d6 {[%clk 0:02:59]} 3. Bb5+ {[%clk 0:02:59]}  Nd7 {[%clk 0:02:59]} 4. O-O {[%clk 0:02:58]}  Nf6 {[%clk 0:02:56]} 5. e5 {[%clk 0:02:58]}  dxe5 {[%clk 0:02:53]} 6. Nxe5 {[%clk 0:02:58]}  a6 {[%clk 0:02:52]} 7. Nxd7 {[%clk 0:02:57]}  Bxd7 {[%clk 0:02:47]} 8. Bxd7+ {[%clk 0:02:57]}  Qxd7 {[%clk 0:02:47]} 9. d3 {[%clk 0:02:55]}  g6 {[%clk 0:02:28]} 10. Nc3 {[%clk 0:02:55]}  Bg7 {[%clk 0:02:28]} 11. Qf3 {[%clk 0:02:55]}  O-O {[%clk 0:02:25]} 12. Re1 {[%clk 0:02:55]}  b5 {[%clk 0:01:54]} 13. Bg5 {[%clk 0:02:54]}  Rad8 {[%clk 0:01:33]} 14. a3 {[%clk 0:02:52]}  h6 {[%clk 0:01:18]} 15. Bd2 {[%clk 0:02:48]}  Rfe8 {[%clk 0:00:57]} 16. Rab1 {[%clk 0:02:47]}  Qg4 {[%clk 0:00:55]} 17. Qb7 {[%clk 0:02:42]}  c4 {[%clk 0:00:39]} 18. Qxa6 {[%clk 0:02:35]}  cxd3 {[%clk 0:00:40]} 19. cxd3 {[%clk 0:02:35]}  Rxd3 {[%clk 0:00:38]} 20. Be3 {[%clk 0:02:32]}  Red8 {[%clk 0:00:24]} 21. Qxb5 {[%clk 0:02:30]}  Nh5 {[%clk 0:00:23]} 22. h3 {[%clk 0:02:26]}  Qc8 {[%clk 0:00:18]} 23. Ne4 {[%clk 0:02:17]}  Kh7 {[%clk 0:00:14]} 24. a4 {[%clk 0:02:10]}  Qe6 {[%clk 0:00:12]} 25. Nc5 {[%clk 0:02:08]}  Qa2 {[%clk 0:00:06]} 26. Nxd3 {[%clk 0:02:07]} 1-0


[Site "https://www.chess.com"]

[Event "Titled Tuesday Blitz November 14 Late 2023"]
[White "Garrido, Denis"]
[Black "Womacka, Mathias"]
[WhiteFideId "601217"]
[BlackFideId "4611390"]
[WhiteElo "2390"]
[BlackElo "2533"]
[Result "1-0"]
[Round "8"]
[TimeControl "180+1"]
[Date "2023.11.14"]
[WhiteClock "0:00:09"]
[BlackClock "0:00:00"]
[Board "71"]

1. e4 {[%clk 0:03:00]}  c5 {[%clk 0:03:00]} 2. Nf3 {[%clk 0:03:00]}  d6 {[%clk 0:03:00]} 3. d4 {[%clk 0:03:01]}  cxd4 {[%clk 0:03:00]} 4. Nxd4 {[%clk 0:03:01]}  Nf6 {[%clk 0:02:58]} 5. Nc3 {[%clk 0:03:02]}  a6 {[%clk 0:02:59]} 6. g3 {[%clk 0:02:58]}  e5 {[%clk 0:02:56]} 7. Nb3 {[%clk 0:02:57]}  Be7 {[%clk 0:02:50]} 8. Bg5 {[%clk 0:02:57]}  O-O {[%clk 0:02:29]} 9. Bxf6 {[%clk 0:02:52]}  Bxf6 {[%clk 0:02:28]} 10. Qd3 {[%clk 0:02:50]}  Be6 {[%clk 0:02:23]} 11. O-O-O {[%clk 0:02:46]}  Be7 {[%clk 0:02:19]} 12. f4 {[%clk 0:02:42]}  Nd7 {[%clk 0:01:58]} 13. f5 {[%clk 0:02:35]}  Bxb3 {[%clk 0:01:58]} 14. axb3 {[%clk 0:02:36]}  Nf6 {[%clk 0:01:52]} 15. Qf3 {[%clk 0:02:32]}  b5 {[%clk 0:01:50]} 16. g4 {[%clk 0:02:25]}  b4 {[%clk 0:01:46]} 17. Nd5 {[%clk 0:02:25]}  Nxd5 {[%clk 0:01:46]} 18. Rxd5 {[%clk 0:02:25]}  Bg5+ {[%clk 0:01:40]} 19. Kb1 {[%clk 0:02:25]}  Qc7 {[%clk 0:01:35]} 20. h4 {[%clk 0:02:17]}  Bf4 {[%clk 0:01:34]} 21. Bc4 {[%clk 0:02:16]}  a5 {[%clk 0:01:34]} 22. g5 {[%clk 0:02:12]}  a4 {[%clk 0:01:33]} 23. g6 {[%clk 0:01:50]}  Kh8 {[%clk 0:01:23]} 24. Qh5 {[%clk 0:00:57]}  fxg6 {[%clk 0:01:11]} 25. fxg6 {[%clk 0:00:54]}  h6 {[%clk 0:01:10]} 26. Rf1 {[%clk 0:00:47]}  axb3 {[%clk 0:00:53]} 27. cxb3 {[%clk 0:00:48]}  Rf6 {[%clk 0:00:42]} 28. Qg4 {[%clk 0:00:33]}  Qa7 {[%clk 0:00:38]} 29. Kc2 {[%clk 0:00:31]}  Qe3 {[%clk 0:00:31]} 30. Qg2 {[%clk 0:00:27]}  h5 {[%clk 0:00:23]} 31. Rd3 {[%clk 0:00:27]}  Qc5 {[%clk 0:00:19]} 32. Qe2 {[%clk 0:00:27]}  Raf8 {[%clk 0:00:12]} 33. Qxh5+ {[%clk 0:00:26]}  Bh6 {[%clk 0:00:09]} 34. Rdf3 {[%clk 0:00:16]}  Qd4 {[%clk 0:00:07]} 35. Bd3 {[%clk 0:00:10]}  Qc5+ {[%clk 0:00:04]} 36. Kb1 {[%clk 0:00:09]}  Rxf3 {[%clk 0:00:00]} 37. Rxf3 {[%clk 0:00:09]} 1-0


[Site "https://www.chess.com"]

[Event "Titled Tuesday Blitz November 14 Late 2023"]
[White "Golubenko, Valentina"]
[Black "Ferreira, Vitor Hugo Vieira"]
[WhiteFideId "4501993"]
[BlackFideId "2119765"]
[WhiteElo "2368"]
[BlackElo "2519"]
[Result "1-0"]
[Round "8"]
[TimeControl "180+1"]
[Date "2023.11.14"]
[WhiteClock "0:00:21"]
[BlackClock "0:00:08"]
[Board "72"]

1. d4 {[%clk 0:03:00]}  d5 {[%clk 0:02:59]} 2. g3 {[%clk 0:03:00]}  Nf6 {[%clk 0:02:58]} 3. Bg2 {[%clk 0:03:01]}  c6 {[%clk 0:02:59]} 4. Nf3 {[%clk 0:03:00]}  Bf5 {[%clk 0:02:54]} 5. O-O {[%clk 0:02:57]}  h6 {[%clk 0:02:54]} 6. c4 {[%clk 0:02:57]}  e6 {[%clk 0:02:54]} 7. Nc3 {[%clk 0:02:57]}  Be7 {[%clk 0:02:54]} 8. Nd2 {[%clk 0:02:55]}  Nbd7 {[%clk 0:02:52]} 9. e4 {[%clk 0:02:55]}  dxe4 {[%clk 0:02:52]} 10. Ndxe4 {[%clk 0:02:56]}  O-O {[%clk 0:02:51]} 11. Be3 {[%clk 0:02:45]}  Nxe4 {[%clk 0:02:51]} 12. Nxe4 {[%clk 0:02:45]}  Nf6 {[%clk 0:02:51]} 13. Nc3 {[%clk 0:02:44]}  Qc7 {[%clk 0:02:30]} 14. h3 {[%clk 0:02:32]}  Rfd8 {[%clk 0:02:29]} 15. Qe2 {[%clk 0:02:31]}  a6 {[%clk 0:02:26]} 16. Rfd1 {[%clk 0:02:20]}  Rd7 {[%clk 0:02:20]} 17. Rac1 {[%clk 0:02:14]}  Qa5 {[%clk 0:02:09]} 18. a3 {[%clk 0:02:09]}  Rad8 {[%clk 0:02:09]} 19. Ra1 {[%clk 0:01:44]}  Qc7 {[%clk 0:02:00]} 20. b4 {[%clk 0:01:43]}  b5 {[%clk 0:01:59]} 21. Rac1 {[%clk 0:01:39]}  bxc4 {[%clk 0:01:44]} 22. Qxc4 {[%clk 0:01:39]}  Nd5 {[%clk 0:01:38]} 23. Nxd5 {[%clk 0:01:32]}  exd5 {[%clk 0:01:37]} 24. Qxa6 {[%clk 0:01:31]}  Qa7 {[%clk 0:01:28]} 25. Rxc6 {[%clk 0:01:21]}  Qxa6 {[%clk 0:01:05]} 26. Rxa6 {[%clk 0:01:20]}  Rc7 {[%clk 0:01:06]} 27. Ra5 {[%clk 0:01:14]}  Be6 {[%clk 0:01:05]} 28. Rc1 {[%clk 0:01:07]}  Rxc1+ {[%clk 0:01:03]} 29. Bxc1 {[%clk 0:01:07]}  Rc8 {[%clk 0:01:04]} 30. Be3 {[%clk 0:01:04]}  Rc3 {[%clk 0:00:58]} 31. Ra7 {[%clk 0:00:48]}  Bd6 {[%clk 0:00:50]} 32. Ra5 {[%clk 0:00:42]}  g5 {[%clk 0:00:44]} 33. Bxd5 {[%clk 0:00:41]}  Bxh3 {[%clk 0:00:40]} 34. Ra7 {[%clk 0:00:36]}  Bc7 {[%clk 0:00:38]} 35. b5 {[%clk 0:00:34]}  Be6 {[%clk 0:00:34]} 36. Bxe6 {[%clk 0:00:31]}  fxe6 {[%clk 0:00:35]} 37. a4 {[%clk 0:00:31]}  Kf8 {[%clk 0:00:19]} 38. a5 {[%clk 0:00:30]}  Ke8 {[%clk 0:00:18]} 39. b6 {[%clk 0:00:30]}  Bd6 {[%clk 0:00:17]} 40. a6 {[%clk 0:00:30]}  Kd8 {[%clk 0:00:17]} 41. Ra8+ {[%clk 0:00:29]}  Kd7 {[%clk 0:00:17]} 42. Kg2 {[%clk 0:00:26]}  Ra3 {[%clk 0:00:15]} 43. Kf3 {[%clk 0:00:25]}  Kc6 {[%clk 0:00:16]} 44. b7 {[%clk 0:00:24]}  Rb3 {[%clk 0:00:13]} 45. Rc8+ {[%clk 0:00:24]}  Bc7 {[%clk 0:00:14]} 46. Ke4 {[%clk 0:00:22]}  Kb6 {[%clk 0:00:08]} 47. b8=Q+ {[%clk 0:00:21]} 1-0


[Site "https://www.chess.com"]

[Event "Titled Tuesday Blitz November 14 Late 2023"]
[White "Avalos Parra, Joao"]
[Black "Erzhanov, Arman"]
[WhiteFideId "3402541"]
[BlackFideId "4138821"]
[WhiteElo "2350"]
[BlackElo "2508"]
[Result "1-0"]
[Round "8"]
[TimeControl "180+1"]
[Date "2023.11.14"]
[WhiteClock "0:00:13"]
[BlackClock "0:00:08"]
[Board "73"]

1. d4 {[%clk 0:03:00]}  d6 {[%clk 0:03:00]} 2. c4 {[%clk 0:03:00]}  e5 {[%clk 0:02:59]} 3. d5 {[%clk 0:02:57]}  Be7 {[%clk 0:02:58]} 4. Nc3 {[%clk 0:02:57]}  Bg5 {[%clk 0:02:57]} 5. e4 {[%clk 0:02:55]}  Nd7 {[%clk 0:02:54]} 6. g3 {[%clk 0:02:55]}  Bxc1 {[%clk 0:02:53]} 7. Rxc1 {[%clk 0:02:54]}  a5 {[%clk 0:02:54]} 8. Bg2 {[%clk 0:02:55]}  Nc5 {[%clk 0:02:54]} 9. Nf3 {[%clk 0:02:55]}  Nf6 {[%clk 0:02:54]} 10. Nd2 {[%clk 0:02:55]}  O-O {[%clk 0:02:54]} 11. O-O {[%clk 0:02:53]}  Re8 {[%clk 0:02:54]} 12. b3 {[%clk 0:02:53]}  b6 {[%clk 0:02:54]} 13. a3 {[%clk 0:02:53]}  Bd7 {[%clk 0:02:53]} 14. b4 {[%clk 0:02:53]}  axb4 {[%clk 0:02:53]} 15. axb4 {[%clk 0:02:54]}  Na4 {[%clk 0:02:54]} 16. Nxa4 {[%clk 0:02:53]}  Rxa4 {[%clk 0:02:52]} 17. Rb1 {[%clk 0:02:50]}  Qa8 {[%clk 0:02:52]} 18. Re1 {[%clk 0:02:42]}  Qa7 {[%clk 0:02:49]} 19. Nf1 {[%clk 0:02:42]}  Ra8 {[%clk 0:02:49]} 20. Ne3 {[%clk 0:02:40]}  Ra2 {[%clk 0:02:46]} 21. h3 {[%clk 0:02:39]}  Qa3 {[%clk 0:02:45]} 22. g4 {[%clk 0:02:35]}  h6 {[%clk 0:02:44]} 23. Qc1 {[%clk 0:02:24]}  Qd3 {[%clk 0:02:30]} 24. Rd1 {[%clk 0:02:15]}  Qe2 {[%clk 0:02:27]} 25. Rf1 {[%clk 0:02:04]}  R8a3 {[%clk 0:02:26]} 26. c5 {[%clk 0:01:45]}  bxc5 {[%clk 0:02:12]} 27. bxc5 {[%clk 0:01:46]}  dxc5 {[%clk 0:02:12]} 28. Qxc5 {[%clk 0:01:46]}  Kh7 {[%clk 0:02:03]} 29. Rbe1 {[%clk 0:01:44]}  Qa6 {[%clk 0:01:46]} 30. Qxc7 {[%clk 0:01:41]}  Bb5 {[%clk 0:01:44]} 31. Qxe5 {[%clk 0:01:40]}  Bxf1 {[%clk 0:01:42]} 32. Bxf1 {[%clk 0:01:36]}  Qc8 {[%clk 0:01:27]} 33. Bg2 {[%clk 0:01:14]}  Rd2 {[%clk 0:01:23]} 34. Qf4 {[%clk 0:01:10]}  Raa2 {[%clk 0:01:21]} 35. Rf1 {[%clk 0:01:09]}  Rd4 {[%clk 0:01:11]} 36. Nf5 {[%clk 0:01:04]}  Ng8 {[%clk 0:00:43]} 37. Nxg7 {[%clk 0:00:53]}  Rdd2 {[%clk 0:00:30]} 38. Nh5 {[%clk 0:00:49]}  Qd7 {[%clk 0:00:19]} 39. e5 {[%clk 0:00:34]}  Rxd5 {[%clk 0:00:18]} 40. Be4+ {[%clk 0:00:33]}  Kh8 {[%clk 0:00:19]} 41. Bxd5 {[%clk 0:00:30]}  Qxd5 {[%clk 0:00:19]} 42. Nf6 {[%clk 0:00:25]}  Nxf6 {[%clk 0:00:18]} 43. Qxf6+ {[%clk 0:00:26]}  Kh7 {[%clk 0:00:18]} 44. Qf5+ {[%clk 0:00:26]}  Kg7 {[%clk 0:00:17]} 45. g5 {[%clk 0:00:24]}  hxg5 {[%clk 0:00:17]} 46. Qxg5+ {[%clk 0:00:25]}  Kh7 {[%clk 0:00:16]} 47. Qf5+ {[%clk 0:00:25]}  Kh8 {[%clk 0:00:14]} 48. Re1 {[%clk 0:00:23]}  Ra8 {[%clk 0:00:14]} 49. Qf6+ {[%clk 0:00:18]}  Kh7 {[%clk 0:00:14]} 50. Qh4+ {[%clk 0:00:18]}  Kg7 {[%clk 0:00:13]} 51. Qg4+ {[%clk 0:00:16]}  Kh7 {[%clk 0:00:12]} 52. Qh4+ {[%clk 0:00:16]}  Kg7 {[%clk 0:00:13]} 53. Qe4 {[%clk 0:00:16]}  Qd8 {[%clk 0:00:08]} 54. Kg2 {[%clk 0:00:16]}  Ra6 {[%clk 0:00:08]} 55. Re3 {[%clk 0:00:16]}  Kf8 {[%clk 0:00:07]} 56. Rg3 {[%clk 0:00:15]}  Ke7 {[%clk 0:00:04]} 57. Qh4+ {[%clk 0:00:13]}  f6 {[%clk 0:00:04]} 58. Rg7+ {[%clk 0:00:13]}  Ke6 {[%clk 0:00:04]} 59. Qg4+ {[%clk 0:00:10]}  Kxe5 {[%clk 0:00:03]} 60. Qe2+ {[%clk 0:00:08]}  Kd6 {[%clk 0:00:03]} 61. Qxa6+ {[%clk 0:00:08]}  Kc5 {[%clk 0:00:03]} 62. Qa7+ {[%clk 0:00:07]}  Kd5 {[%clk 0:00:02]} 63. Rd7+ {[%clk 0:00:07]}  Qxd7 {[%clk 0:00:03]} 64. Qxd7+ {[%clk 0:00:08]}  Ke5 {[%clk 0:00:03]} 65. Qf7 {[%clk 0:00:08]}  Kf4 {[%clk 0:00:04]} 66. Qxf6+ {[%clk 0:00:08]}  Ke4 {[%clk 0:00:05]} 67. Qh4+ {[%clk 0:00:08]}  Kd5 {[%clk 0:00:06]} 68. Qg3 {[%clk 0:00:08]}  Ke6 {[%clk 0:00:06]} 69. h4 {[%clk 0:00:09]}  Kf7 {[%clk 0:00:07]} 70. h5 {[%clk 0:00:10]}  Kf8 {[%clk 0:00:08]} 71. h6 {[%clk 0:00:11]}  Ke8 {[%clk 0:00:08]} 72. h7 {[%clk 0:00:12]}  Kf7 {[%clk 0:00:09]} 73. h8=Q {[%clk 0:00:13]}  Ke6 {[%clk 0:00:10]} 74. Qh5 {[%clk 0:00:12]}  Ke7 {[%clk 0:00:08]} 75. Qg7+ {[%clk 0:00:13]} 1-0


[Site "https://www.chess.com"]

[Event "Titled Tuesday Blitz November 14 Late 2023"]
[White "Silvestre, Christian"]
[Black "Przybylski, Wojciech"]
[WhiteFideId "30956269"]
[BlackFideId "1117599"]
[WhiteElo "2260"]
[BlackElo "2507"]
[Result "1-0"]
[Round "8"]
[TimeControl "180+1"]
[Date "2023.11.14"]
[WhiteClock "0:00:53"]
[BlackClock "0:00:00"]
[Board "74"]

1. e4 {[%clk 0:03:00]}  c5 {[%clk 0:02:58]} 2. c3 {[%clk 0:02:59]}  d5 {[%clk 0:02:56]} 3. exd5 {[%clk 0:02:56]}  Qxd5 {[%clk 0:02:57]} 4. d4 {[%clk 0:02:56]}  Nf6 {[%clk 0:02:56]} 5. Nf3 {[%clk 0:02:54]}  Bg4 {[%clk 0:02:55]} 6. Be2 {[%clk 0:02:51]}  Nc6 {[%clk 0:02:54]} 7. O-O {[%clk 0:02:51]}  cxd4 {[%clk 0:02:53]} 8. cxd4 {[%clk 0:02:50]}  e6 {[%clk 0:02:53]} 9. Nc3 {[%clk 0:02:50]}  Qa5 {[%clk 0:02:53]} 10. Qb3 {[%clk 0:02:45]}  Qb4 {[%clk 0:02:51]} 11. Qxb4 {[%clk 0:02:44]}  Bxb4 {[%clk 0:02:48]} 12. a3 {[%clk 0:02:44]}  Be7 {[%clk 0:02:47]} 13. Rd1 {[%clk 0:02:40]}  O-O-O {[%clk 0:02:45]} 14. Bf4 {[%clk 0:02:38]}  Nd5 {[%clk 0:02:42]} 15. Bg3 {[%clk 0:02:37]}  a6 {[%clk 0:02:38]} 16. Rac1 {[%clk 0:02:31]}  Kd7 {[%clk 0:01:51]} 17. Nxd5 {[%clk 0:02:21]}  exd5 {[%clk 0:01:51]} 18. Rxc6 {[%clk 0:02:20]}  Kxc6 {[%clk 0:01:12]} 19. Ne5+ {[%clk 0:02:18]}  Kb6 {[%clk 0:01:09]} 20. Bxg4 {[%clk 0:02:17]}  Rhf8 {[%clk 0:01:04]} 21. Nd7+ {[%clk 0:02:16]}  Kb5 {[%clk 0:01:00]} 22. Nxf8 {[%clk 0:02:15]}  Bxf8 {[%clk 0:00:59]} 23. h3 {[%clk 0:02:10]}  g6 {[%clk 0:00:57]} 24. Rc1 {[%clk 0:02:07]}  Bg7 {[%clk 0:00:54]} 25. Be2+ {[%clk 0:02:04]}  Ka4 {[%clk 0:00:52]} 26. Bd1+ {[%clk 0:02:00]}  Kb5 {[%clk 0:00:50]} 27. a4+ {[%clk 0:01:50]}  Kb4 {[%clk 0:00:33]} 28. Rc7 {[%clk 0:01:41]}  b5 {[%clk 0:00:17]} 29. axb5 {[%clk 0:01:39]}  axb5 {[%clk 0:00:17]} 30. f3 {[%clk 0:01:36]}  Re8 {[%clk 0:00:14]} 31. Kf1 {[%clk 0:01:34]}  Bxd4 {[%clk 0:00:13]} 32. Be1+ {[%clk 0:01:33]}  Rxe1+ {[%clk 0:00:12]} 33. Kxe1 {[%clk 0:01:33]}  Bxb2 {[%clk 0:00:12]} 34. Rxf7 {[%clk 0:01:32]}  Kc4 {[%clk 0:00:10]} 35. Rxh7 {[%clk 0:01:31]}  b4 {[%clk 0:00:10]} 36. h4 {[%clk 0:01:28]}  Kd3 {[%clk 0:00:09]} 37. Be2+ {[%clk 0:01:21]}  Ke3 {[%clk 0:00:07]} 38. Re7+ {[%clk 0:01:12]}  Kf4 {[%clk 0:00:07]} 39. Re6 {[%clk 0:01:07]}  Kg3 {[%clk 0:00:03]} 40. Rxg6+ {[%clk 0:01:06]}  Kxh4 {[%clk 0:00:04]} 41. Rg4+ {[%clk 0:01:04]}  Kh5 {[%clk 0:00:02]} 42. Kd1 {[%clk 0:01:05]}  Bc3 {[%clk 0:00:02]} 43. Kc2 {[%clk 0:01:04]}  Kh6 {[%clk 0:00:02]} 44. Kb3 {[%clk 0:01:02]}  d4 {[%clk 0:00:01]} 45. Bd3 {[%clk 0:00:59]}  Kh5 {[%clk 0:00:02]} 46. Rg6 {[%clk 0:00:57]}  Kh4 {[%clk 0:00:01]} 47. Rb6 {[%clk 0:00:57]}  Kg3 {[%clk 0:00:00]} 48. Rg6+ {[%clk 0:00:53]} 1-0


[Site "https://www.chess.com"]

[Event "Titled Tuesday Blitz November 14 Late 2023"]
[White "Balla, Tamas-Kristof"]
[Black "Santos Flores, Alberto"]
[WhiteFideId "1208497"]
[BlackFideId "3601234"]
[WhiteElo "2383"]
[BlackElo "2557"]
[Result "0-1"]
[Round "8"]
[TimeControl "180+1"]
[Date "2023.11.14"]
[WhiteClock "0:00:20"]
[BlackClock "0:01:15"]
[Board "76"]

1. e4 {[%clk 0:03:00]}  e6 {[%clk 0:03:00]} 2. d4 {[%clk 0:03:01]}  d5 {[%clk 0:03:00]} 3. Nd2 {[%clk 0:03:01]}  c5 {[%clk 0:02:59]} 4. exd5 {[%clk 0:03:02]}  Qxd5 {[%clk 0:02:55]} 5. Ngf3 {[%clk 0:03:02]}  cxd4 {[%clk 0:02:55]} 6. Bc4 {[%clk 0:03:03]}  Qd6 {[%clk 0:02:55]} 7. O-O {[%clk 0:03:03]}  Nf6 {[%clk 0:02:56]} 8. Nb3 {[%clk 0:03:03]}  Nc6 {[%clk 0:02:56]} 9. Nbxd4 {[%clk 0:03:04]}  Nxd4 {[%clk 0:02:57]} 10. Nxd4 {[%clk 0:03:05]}  a6 {[%clk 0:02:57]} 11. Re1 {[%clk 0:03:04]}  Qc7 {[%clk 0:02:57]} 12. Bb3 {[%clk 0:03:05]}  Bd7 {[%clk 0:02:52]} 13. Bg5 {[%clk 0:02:57]}  O-O-O {[%clk 0:02:49]} 14. c3 {[%clk 0:02:54]}  Bd6 {[%clk 0:02:48]} 15. h3 {[%clk 0:02:51]}  h6 {[%clk 0:02:47]} 16. Be3 {[%clk 0:02:45]}  Bh2+ {[%clk 0:02:40]} 17. Kh1 {[%clk 0:02:42]}  Bf4 {[%clk 0:02:40]} 18. Qf3 {[%clk 0:02:33]}  Bxe3 {[%clk 0:02:40]} 19. Qxe3 {[%clk 0:02:30]}  Bc6 {[%clk 0:02:38]} 20. Nxc6 {[%clk 0:02:28]}  Qxc6 {[%clk 0:02:38]} 21. Qa7 {[%clk 0:02:25]}  Kc7 {[%clk 0:02:35]} 22. Qe3 {[%clk 0:02:13]}  Rd6 {[%clk 0:02:31]} 23. Rad1 {[%clk 0:02:12]}  Rhd8 {[%clk 0:02:31]} 24. Rxd6 {[%clk 0:02:12]}  Rxd6 {[%clk 0:02:30]} 25. Qg3 {[%clk 0:02:10]}  Ne8 {[%clk 0:02:23]} 26. Qf4 {[%clk 0:02:02]}  Qd7 {[%clk 0:02:20]} 27. Ba4 {[%clk 0:01:58]}  b5 {[%clk 0:02:16]} 28. Bc2 {[%clk 0:01:58]}  Kd8 {[%clk 0:02:13]} 29. a4 {[%clk 0:01:58]}  Rd2 {[%clk 0:02:09]} 30. Bb3 {[%clk 0:01:34]}  Ke7 {[%clk 0:01:57]} 31. axb5 {[%clk 0:01:30]}  axb5 {[%clk 0:01:49]} 32. Qb4+ {[%clk 0:01:28]}  Qd6 {[%clk 0:01:41]} 33. Qxb5 {[%clk 0:01:22]}  Rxf2 {[%clk 0:01:40]} 34. Rd1 {[%clk 0:01:10]}  Rd2 {[%clk 0:01:36]} 35. Rxd2 {[%clk 0:01:02]}  Qxd2 {[%clk 0:01:37]} 36. Ba4 {[%clk 0:01:03]}  Nd6 {[%clk 0:01:24]} 37. Qb4 {[%clk 0:00:42]}  Kf6 {[%clk 0:01:16]} 38. Qc4 {[%clk 0:00:20]}  Nxc4 {[%clk 0:01:15]} 0-1


[Site "https://www.chess.com"]

[Event "Titled Tuesday Blitz November 14 Late 2023"]
[White "The_Straightforward_Rook"]
[Black "Van Osch, Mees"]
[BlackFideId "1035967"]
[WhiteElo "2551"]
[BlackElo "2376"]
[Result "0-1"]
[Round "8"]
[TimeControl "180+1"]
[Date "2023.11.14"]
[WhiteClock "0:01:02"]
[BlackClock "0:01:13"]
[Board "77"]

1. e4 {[%clk 0:02:57]}  e6 {[%clk 0:02:58]} 2. d4 {[%clk 0:02:56]}  d5 {[%clk 0:02:58]} 3. e5 {[%clk 0:02:57]}  c5 {[%clk 0:02:58]} 4. c3 {[%clk 0:02:57]}  Qb6 {[%clk 0:02:58]} 5. Nf3 {[%clk 0:02:56]}  Bd7 {[%clk 0:02:59]} 6. Be2 {[%clk 0:02:55]}  Bb5 {[%clk 0:02:59]} 7. O-O {[%clk 0:02:53]}  Nc6 {[%clk 0:02:54]} 8. Be3 {[%clk 0:02:50]}  Nh6 {[%clk 0:02:41]} 9. Na3 {[%clk 0:02:33]}  Bxe2 {[%clk 0:02:39]} 10. Qxe2 {[%clk 0:02:34]}  c4 {[%clk 0:02:37]} 11. Bxh6 {[%clk 0:02:31]}  gxh6 {[%clk 0:02:29]} 12. Nc2 {[%clk 0:02:25]}  Qxb2 {[%clk 0:02:25]} 13. Rab1 {[%clk 0:02:25]}  Qxc3 {[%clk 0:02:25]} 14. Rxb7 {[%clk 0:02:25]}  Be7 {[%clk 0:02:06]} 15. g3 {[%clk 0:02:14]}  O-O {[%clk 0:02:04]} 16. Ne3 {[%clk 0:02:03]}  Rab8 {[%clk 0:01:57]} 17. Rxb8 {[%clk 0:02:01]}  Rxb8 {[%clk 0:01:57]} 18. Ng4 {[%clk 0:02:02]}  Rb2 {[%clk 0:01:48]} 19. Qd1 {[%clk 0:01:57]}  h5 {[%clk 0:01:47]} 20. Ne3 {[%clk 0:01:26]}  Rxa2 {[%clk 0:01:30]} 21. Ne1 {[%clk 0:01:14]}  Qxd4 {[%clk 0:01:22]} 22. Qxh5 {[%clk 0:01:12]}  Qxe5 {[%clk 0:01:21]} 23. Qg4+ {[%clk 0:01:12]}  Qg7 {[%clk 0:01:20]} 24. Qf4 {[%clk 0:01:10]}  Nd4 {[%clk 0:01:13]} 25. Ng4 {[%clk 0:01:02]}  Ne2+ {[%clk 0:01:13]} 0-1


[Site "https://www.chess.com"]